fUST/lending_fUST_20250824
["ID","MTS","AMOUNT","RATE_DAILY","PERIOD"]
[381084268,1756017038450,-500.0,0.00025999,2]
[381084269,1756017038459,-500.0,0.00025999,2]
[381084270,1756017038468,-500.0,0.00025999,2]
[381084271,1756017038478,-500.0,0.00025999,2]
[381084272,1756017038487,-500.0,0.00025999,2]
[381084273,1756017038496,-500.0,0.00025999,2]
[381084274,1756017038505,-500.0,0.00025999,2]
[381084275,1756017038515,-500.0,0.00025999,2]
[381084276,1756017038524,-500.0,0.00025999,2]
[381084277,1756017038533,-500.0,0.00025999,2]
[381084278,1756017038542,-500.0,0.00025999,2]
[381084279,1756017038551,-500.0,0.00025999,2]
[381084280,1756017038560,-500.0,0.00025999,2]
[381084281,1756017038571,-500.0,0.00025999,2]
[381084282,1756017038580,-500.0,0.00025999,2]
[381084283,1756017038589,-500.0,0.00025999,2]
[381084284,1756017038599,-500.0,0.00025999,2]
[381084285,1756017038608,-9381.16941028,0.00026,30]
[381084286,1756017038618,-1392.37234759,0.00026706,2]
[381084287,1756017038627,-332.0,0.00028137,2]
[381084288,1756017038637,-420.0,0.00028137,2]
[381084289,1756017038646,-280.0,0.00028137,2]
[381084290,1756017038656,-1680.0,0.00028262,2]
[381084291,1756017038665,-163.43,0.00029485,10]
[381084292,1756017038674,-153.49,0.00029486,3]
[381084293,1756017038683,-460.49,0.00029486,3]
[381084294,1756017038693,-160.0,0.00029489,2]
[381084295,1756017038702,-436.05714044,0.00029495,2]
[381084296,1756017038711,-160.0,0.00029495,2]
[381084297,1756017038721,-160.0,0.00029495,2]
[381084298,1756017038730,-46409.40080737,0.00029496,2]
[381084299,1756017038739,-174.135,0.00029496,23]
[381084300,1756017038749,-2706.08867979,0.000295,2]
[381084301,1756017038758,-158.0,0.000295,24]
[381084302,1756017038767,-1997.58676033,0.000295,2]
[381084303,1756017038777,-202.20021287,0.0002956,10]
[381084304,1756017038786,-200.0,0.00029561,10]
[381084305,1756017038795,-200.0,0.00029561,10]
[381084306,1756017038804,-208.238992,0.00029561,10]
[381084307,1756017038813,-716.52377898,0.00029561,2]
[381084308,1756017038822,-1309518.09832825,0.00029561,20]
[381084309,1756017038831,-2851.86580926,0.00029561,2]
[381084310,1756017038840,-15241.06026139,0.00029561,2]
[381084311,1756017038850,-500.0,0.00029573,5]
[381084312,1756017038859,-161.38519004,0.00029573,5]
[381084313,1756017038869,-500.0,0.00029573,5]
[381084314,1756017038878,-512.13917913,0.00029573,5]
[381084315,1756017038887,-444.30390894,0.00029573,5]
[381084316,1756017038895,-500.0,0.00029573,5]
[381084317,1756017038904,-461.7,0.000296,7]
[381084318,1756017038914,-10736.74,0.000296,2]
[381084319,1756017038923,-171.15,0.000296,7]
[381084320,1756017038932,-647.66914228,0.0003,4]
[381084321,1756017038941,-369.63779912,0.00030259,13]
[381084322,1756017038950,-587.0,0.0003045,2]
[381084323,1756017038959,-1392.37234753,0.00030469,2]
[381084324,1756017038969,-769.0,0.00030723,2]
[381084325,1756017038980,-306.98,0.00030856,3]
[381084326,1756017038989,-10304.4212665,0.0003099,2]
[381084327,1756017038998,-598.62204794,0.0003099,2]
[381084328,1756017039007,-160.0,0.00031,20]
[381084329,1756017039016,-1680.0,0.00031806,3]
[381084330,1756017039026,-369.63779912,0.00031986,17]
[381084331,1756017039035,-1126.74,0.00032876,120]
[381084332,1756017039044,-382.0,0.00032954,2]
[381084333,1756017039054,-3077.68296144,0.0003298,2]
[381084334,1756017039065,-250.0,0.00033139,2]
[381084335,1756017039074,-369.63779912,0.00033712,21]
[381084336,1756017039083,-1392.37234753,0.00034233,2]
[381084337,1756017039092,-1126.74,0.00034246,120]
[381084338,1756017039101,-281.0,0.00034297,3]
[381084339,1756017039110,-158.0,0.00035,30]
[381084340,1756017039119,-171.15,0.000353,7]
[381084341,1756017039128,-369.63779912,0.00035439,24]
[381084342,1756017039137,-1126.74,0.00035616,120]
[381084343,1756017039147,-10736.74,0.000359,14]
[381084344,1756017039156,-500.0,0.0003601,5]
[381084345,1756017039165,-1997.58676032,0.000362,10]
[381084346,1756017039174,-461.7,0.000364,14]
[381084347,1756017039183,-1126.74,0.00036986,120]
[381084348,1756017039192,-160.0,0.00037,44]
[381084349,1756017039202,-369.63779912,0.00037166,28]
[381084350,1756017039211,-168.0,0.00037252,2]
[381084351,1756017039220,-1392.37234753,0.00037996,2]
[381084352,1756017039228,-158.0,0.00038,32]
[381084353,1756017039238,-168.0,0.00038041,2]
[381084354,1756017039247,-1126.74,0.00038356,120]
[381084355,1756017039257,-168.0,0.00038482,2]
[381084356,1756017039269,-369.63779912,0.00038892,32]
[381084357,1756017039279,-158.0,0.000389,45]
[381084358,1756017039290,-171.15,0.000389,7]
[381084359,1756017039300,-168.0,0.00038929,2]
[381084360,1756017039309,-359.38904221,0.0003898,21]
[381084361,1756017039318,-158.0,0.00039,60]
[381084362,1756017039329,-155.28101746,0.00039,2]
[381084363,1756017039338,-4983.83764398,0.00039,2]
[381084364,1756017039348,-844.67759735,0.00039068,3]
[381084365,1756017039358,-232.42214577,0.00039068,3]
[381084366,1756017039368,-82435.370132,0.00039068,3]
[381084367,1756017039378,-4788.97638352,0.00039068,3]
[381084368,1756017039388,-504.77465991,0.00039073,5]
[381084369,1756017039397,-500.0,0.00039073,5]
[381084370,1756017039407,-500.0,0.00039073,5]
[381084371,1756017039416,-500.0,0.00039073,5]
[381084372,1756017039425,-7849.07820922,0.00039078,2]
[381084391,1756017046259,-256.15866527,0.00025999,2]
[381084404,1756017170013,643.62381581,0.000199,2]
[381084405,1756017170299,643.62381562,0.00023353,2]
[381084406,1756017170488,643.62381562,0.00021627,2]
[381084416,1756017247577,1439.54067015,0.000245,3]
[381084421,1756017338034,603.90395427,0.000199,2]
[381084431,1756017507392,608.41634213,0.00021627,2]
[381084432,1756017507476,608.41634218,0.000199,2]
[381084451,1756017625261,2706.08867979,0.000199,2]
[381084456,1756017683106,617.31929652,0.000199,2]
[381084457,1756017683400,617.31929643,0.00023353,2]
[381084458,1756017683610,617.31929643,0.00021627,2]
[381084461,1756017849279,555.58736699,0.000199,2]
[381084462,1756017850240,555.58736678,0.00021627,2]
[381084467,1756018015417,530.95897116,0.000199,2]
[381084468,1756018015669,530.9589709,0.00021627,2]
[381084469,1756018015718,530.9589709,0.00023353,2]
[381084471,1756018045131,-530.9589709,0.0002508,2]
[381084472,1756018045151,-54.58434052,0.00025981,2]
[381084473,1756018181286,460.16444164,0.000199,2]
[381084474,1756018181695,460.16444144,0.00023353,2]
[381084475,1756018181841,460.16444144,0.00021627,2]
[381084493,1756018232589,-460.16444144,0.0002508,2]
[381084494,1756018232599,-160.0,0.00025977,2]
[381084495,1756018232608,-160.0,0.0002598,2]
[381084496,1756018232617,-157.27,0.00026,2]
[381084497,1756018232626,-239.6338769,0.00026027,2]
[381084498,1756018232635,-460.16444144,0.00026806,6]
[381084499,1756018232645,-1200.0,0.00026899,2]
[381084500,1756018232654,-1000.0,0.000269,2]
[381084501,1756018232663,-1000.0,0.000269,2]
[381084502,1756018232672,-217.07852671,0.00028117,2]
[381084503,1756018232681,-261.9522751,0.00028135,2]
[381084504,1756018232692,-38.0477249,0.00028135,2]
[381084505,1756018232701,-280.0,0.00028135,2]
[381084506,1756018232710,-1200.0,0.00028136,2]
[381084507,1756018232720,-8298.27313929,0.00028137,2]
[381084512,1756018238473,-461.3250708,0.00028137,2]
[381084513,1756018238484,-1073.4,0.00028137,2]
[381084514,1756018238496,-2865.53630416,0.00028137,2]
[381084515,1756018238505,-946.4782875,0.00028501,2]
[381084516,1756018238515,-1249.0,0.00029212,2]
[381084517,1756018238524,-460.16444144,0.00030259,13]
[381084518,1756018238533,-420.0,0.00030382,2]
[381084519,1756018238543,-761.0,0.00030383,2]
[381084520,1756018238553,-460.16444144,0.00031986,17]
[381084521,1756018238563,-587.0,0.00032808,2]
[381084522,1756018238572,-460.16444144,0.00033712,21]
[381084523,1756018238582,-250.0,0.00034084,2]
[381084524,1756018238592,-199.0,0.00035416,120]
[381084525,1756018238601,-382.0,0.00035427,2]
[381084526,1756018238611,-460.16444144,0.00035439,24]
[381084527,1756018238620,-199.0,0.00035516,120]
[381084528,1756018238629,-174.135,0.00035516,42]
[381084529,1756018238638,-973.0,0.00036004,2]
[381084530,1756018238649,-176.014,0.00036004,2]
[381084531,1756018238658,-168.0,0.00036523,2]
[381084532,1756018238668,-460.16444144,0.00037166,28]
[381084533,1756018238677,-168.0,0.0003721,2]
[381084534,1756018238686,-289.49733825,0.00037438,2]
[381084535,1756018238695,-1156.83136364,0.00037438,2]
[381084536,1756018238705,-168.0,0.00037551,2]
[381084537,1756018238714,-168.0,0.00038221,2]
[381084538,1756018238723,-1218.32580415,0.00038792,2]
[381084539,1756018238733,-450.06517043,0.00038868,2]
[381084540,1756018238742,-2700.86840635,0.0003888,10]
[381084541,1756018238751,-460.16444144,0.00038892,32]
[381084542,1756018238760,-11926.6460914,0.000389,120]
[381084543,1756018238770,-160.0,0.000389,120]
[381084544,1756018238780,-844.67759735,0.000389,120]
[381084545,1756018238791,-232.42214577,0.000389,120]
[381084546,1756018238804,-306.98,0.00038958,3]
[381084547,1756018238813,-500.0,0.00038961,15]
[381084548,1756018238824,-502.31289663,0.00038961,15]
[381084549,1756018238833,-303.51427525,0.00038961,15]
[381084550,1756018238843,-500.0,0.00038961,2]
[381084551,1756018238852,-500.0,0.00038961,7]
[381084552,1756018238862,-500.0,0.00038961,15]
[381084553,1756018238872,-500.0,0.00038961,15]
[381084554,1756018238881,-500.0,0.00038961,7]
[381084555,1756018238891,-500.0,0.00038961,15]
[381084556,1756018238901,-500.0,0.00038961,15]
[381084557,1756018238911,-500.0,0.00038961,7]
[381084558,1756018238920,-500.0,0.00038961,2]
[381084559,1756018238929,-500.0,0.00038961,7]
[381084560,1756018238939,-500.0,0.00038961,15]
[381084561,1756018238948,-500.0,0.00038961,7]
[381084563,1756018238957,-500.0,0.00038961,15]
[381084565,1756018238967,-500.0,0.00038961,15]
[381084566,1756018238976,-500.0,0.00038961,7]
[381084567,1756018238985,-500.0,0.00038961,15]
[381084569,1756018238996,-500.0,0.00038961,15]
[381084571,1756018239005,-500.0,0.00038961,2]
[381084572,1756018239015,-492.43885795,0.00038961,7]
[381084574,1756018239024,-332.38915466,0.00038961,15]
[381084575,1756018239033,-500.0,0.00038961,7]
[381084576,1756018239043,-500.0,0.00038961,15]
[381084577,1756018239052,-500.0,0.00038961,7]
[381084579,1756018239061,-500.0,0.00038961,15]
[381084581,1756018239071,-500.0,0.00038961,15]
[381084582,1756018239080,-500.0,0.00038961,2]
[381084584,1756018239089,-500.0,0.00038961,7]
[381084585,1756018239098,-500.0,0.00038961,15]
[381084586,1756018239107,-500.0,0.00038961,15]
[381084587,1756018239116,-500.0,0.00038961,7]
[381084588,1756018239126,-500.0,0.00038961,15]
[381084589,1756018239135,-500.0,0.00038961,7]
[381084590,1756018239144,-500.0,0.00038961,15]
[381084591,1756018239155,-500.0,0.00038961,15]
[381084592,1756018239164,-500.0,0.00038961,7]
[381084593,1756018239174,-500.0,0.00038961,15]
[381084594,1756018239183,-500.0,0.00038961,15]
[381084595,1756018239192,-500.0,0.00038961,7]
[381084596,1756018239202,-500.0,0.00038961,15]
[381084597,1756018239211,-555.83637283,0.00038961,15]
[381084598,1756018239220,-500.0,0.00038961,7]
[381084599,1756018239229,-393.42712775,0.00038961,15]
[381084600,1756018239238,-500.0,0.00038961,7]
[381084601,1756018239248,-500.0,0.00038961,15]
[381084602,1756018239257,-500.0,0.00038961,7]
[381084603,1756018239267,-500.0,0.00038961,15]
[381084604,1756018239276,-500.0,0.00038961,7]
[381084605,1756018239286,-232.42214577,0.00038962,7]
[381084606,1756018239294,-844.67759735,0.00038963,7]
[381084607,1756018239303,-217.07852671,0.00038964,7]
[381084608,1756018239312,-1312.05,0.00038967,120]
[381084609,1756018239322,-305.2399983,0.00038967,15]
[381084610,1756018239331,-200.0,0.00038968,10]
[381084611,1756018239340,-200.0,0.00038968,10]
[381084612,1756018239350,-208.238992,0.00038968,10]
[381084613,1756018239359,-217.07852671,0.00038968,3]
[381084614,1756018239368,-232.42214577,0.00038968,3]
[381084615,1756018239377,-141715.89277,0.00038968,3]
[381084616,1756018239386,-2633.93701096,0.00038968,3]
[381084617,1756018239395,-500.0,0.00038973,5]
[381084618,1756018239405,-500.0,0.00038973,2]
[381084619,1756018239414,-500.0,0.00038973,5]
[381084620,1756018239423,-500.0,0.00038973,5]
[381084621,1756018239432,-512.13917913,0.00038973,5]
[381084622,1756018239442,-444.30390894,0.00038973,5]
[381084623,1756018239452,-500.0,0.00038973,5]
[381084624,1756018239466,-370000.0,0.00038978,2]
[381084625,1756018239476,-359.38904221,0.0003898,21]
[381084626,1756018239485,-10736.74,0.00039,14]
[381084627,1756018239495,-435.32,0.000391,14]
[381084628,1756018239504,-165.19,0.000391,7]
[381084629,1756018239513,-450.0651704,0.00039123,2]
[381084630,1756018239522,-17714.4865963,0.00039129,3]
[381084631,1756018239532,-329.24212637,0.00039129,3]
[381084632,1756018239541,-151.0,0.00039139,2]
[381084633,1756018239550,-291.24052599,0.00039139,2]
[381084634,1756018239559,-500.0,0.00039139,2]
[381084635,1756018239568,-201.93286099,0.00039139,2]
[381084636,1756018239577,-151.0,0.00039139,2]
[381084637,1756018239587,-151.0,0.00039139,2]
[381084638,1756018239596,-21396.85944216,0.00039139,2]
[381084639,1756018239606,-151.0,0.00039139,2]
[381084640,1756018239615,-151.0,0.00039139,2]
[381084641,1756018239625,-151.0,0.00039139,2]
[381084642,1756018239634,-151.0,0.00039139,2]
[381084643,1756018239643,-151.0,0.00039139,2]
[381084644,1756018239653,-151.0,0.00039139,2]
[381084645,1756018239662,-151.0,0.00039139,2]
[381084646,1756018239671,-151.0,0.00039139,2]
[381084647,1756018239681,-151.0,0.00039139,2]
[381084648,1756018239690,-151.0,0.00039139,2]
[381084649,1756018239700,-151.0,0.00039139,2]
[381084650,1756018239713,-151.0,0.00039139,2]
[381084651,1756018239722,-151.0,0.00039139,2]
[381084652,1756018239731,-300.0,0.00039139,2]
[381084653,1756018239741,-151.0,0.00039139,2]
[381084654,1756018239750,-300.0,0.00039139,2]
[381084655,1756018239759,-151.0,0.00039139,2]
[381084656,1756018239768,-151.0,0.00039139,2]
[381084657,1756018239777,-151.0,0.00039139,2]
[381084658,1756018239787,-151.0,0.00039139,2]
[381084659,1756018239796,-300.0,0.00039139,2]
[381084660,1756018239805,-151.0,0.00039139,2]
[381084661,1756018239814,-151.0,0.00039139,2]
[381084662,1756018239823,-300.0,0.00039139,2]
[381084663,1756018239833,-151.0,0.00039139,2]
[381084664,1756018239842,-300.0,0.00039139,2]
[381084665,1756018239851,-151.0,0.00039139,2]
[381084666,1756018239861,-300.0,0.00039139,2]
[381084667,1756018239870,-151.0,0.00039139,2]
[381084668,1756018239879,-300.0,0.00039139,2]
[381084669,1756018239889,-300.0,0.00039139,2]
[381084670,1756018239899,-300.0,0.00039139,2]
[381084671,1756018239908,-300.0,0.00039139,2]
[381084672,1756018239918,-300.0,0.00039139,2]
[381084673,1756018239927,-250.0,0.00039139,2]
[381084674,1756018239936,-324.49593174,0.00039139,2]
[381084675,1756018239945,-300.0,0.00039139,2]
[381084676,1756018239955,-300.0,0.00039139,2]
[381084677,1756018239964,-2524.82941417,0.00039139,2]
[381084679,1756018239973,-323.21924273,0.00039139,2]
[381084680,1756018239982,-1000.0,0.00039178,15]
[381084681,1756018239992,-2618.2481025,0.00039194,2]
[381084682,1756018240002,-5106.41778367,0.000392,120]
[381084683,1756018240011,-2715.12328229,0.00039249,2]
[381084684,1756018240021,-2815.58284374,0.00039304,2]
[381084685,1756018240030,-2919.75940895,0.00039359,2]
[381084686,1756018240040,-450.0651704,0.00039379,2]
[381084687,1756018240049,-17714.4865963,0.00039404,3]
[381084688,1756018240059,-329.24212637,0.00039404,3]
[381084689,1756018240068,-3027.79050709,0.00039414,2]
[381084690,1756018240077,-3139.81875585,0.00039469,2]
[381084691,1756018240087,-3255.99204981,0.00039524,2]
[381084692,1756018240096,-160.0,0.00039563,2]
[381084693,1756018240106,-3376.46375566,0.00039579,2]
[381084694,1756018240115,-450.0651704,0.00039634,2]
[381084695,1756018240125,-3501.39291462,0.00039634,2]
[381084696,1756018240134,-168.0,0.00039664,2]
[381084697,1756018240143,-2670.64462513,0.00039689,2]
[381084698,1756018240154,-647.66914228,0.00039796,8]
[381084699,1756018240164,-168.0,0.0003981,2]
[381084700,1756018240174,-161.38519004,0.00039873,5]
[381084701,1756018240183,-176.11663669,0.00039873,5]
[381084702,1756018240193,-500.0,0.00039873,5]
[381084703,1756018240202,-401.39721443,0.00039877,120]
[381084704,1756018240212,-450.0651704,0.00039889,2]
[381084705,1756018240222,-35428.9731926,0.0003989,3]
[381084706,1756018240237,-658.48425274,0.0003989,3]
[381084707,1756018240247,-1000.0,0.0003989,2]
[381084708,1756018240256,-1000.0,0.0003989,2]
[381084710,1756018240266,-1000.0,0.0003989,2]
[381084711,1756018240276,-1000.0,0.0003989,2]
[381084712,1756018240285,-559.63848899,0.0003989,2]
[381084713,1756018240296,-40453.54217992,0.000399,30]
[381084714,1756018240306,-151.0,0.000399,30]
[381084715,1756018240316,-151.0,0.000399,30]
[381084716,1756018240325,-151.0,0.000399,30]
[381084717,1756018240335,-172.253638,0.000399,30]
[381084718,1756018240344,-172.253638,0.000399,30]
[381084719,1756018240353,-172.253638,0.000399,30]
[381084720,1756018240363,-154.624,0.000399,30]
[381084721,1756018240372,-154.624,0.000399,30]
[381084722,1756018240381,-154.624,0.000399,30]
[381084723,1756018240391,-154.624,0.000399,30]
[381084724,1756018240402,-151.113094,0.000399,30]
[381084725,1756018240412,-151.113094,0.000399,30]
[381084726,1756018240421,-151.113094,0.000399,30]
[381084727,1756018240431,-151.0,0.000399,30]
[381084728,1756018240440,-151.113094,0.000399,30]
[381084729,1756018240449,-256.037123,0.000399,30]
[381084730,1756018240459,-170.965756,0.000399,30]
[381084731,1756018240472,-170.965756,0.000399,30]
[381084732,1756018240482,-170.965756,0.000399,30]
[381084733,1756018240491,-170.965756,0.000399,30]
[381084734,1756018240502,-290.119967,0.000399,30]
[381084735,1756018240511,-290.119967,0.000399,30]
[381084736,1756018240520,-290.119967,0.000399,30]
[381084737,1756018240530,-290.119967,0.000399,30]
[381084738,1756018240540,-163.177633,0.000399,30]
[381084739,1756018240549,-151.0,0.000399,30]
[381084740,1756018240559,-163.177633,0.000399,30]
[381084741,1756018240568,-151.0,0.000399,30]
[381084742,1756018240578,-163.177633,0.000399,30]
[381084743,1756018240587,-163.177633,0.000399,30]
[381084744,1756018240596,-151.0,0.000399,30]
[381084745,1756018240606,-151.0,0.000399,30]
[381084746,1756018240615,-151.0,0.000399,30]
[381084747,1756018240624,-151.0,0.000399,30]
[381084749,1756018240634,-151.0,0.000399,30]
[381084751,1756018240644,-151.0,0.000399,30]
[381084753,1756018240654,-169.55017,0.000399,30]
[381084755,1756018240663,-151.0,0.000399,30]
[381084757,1756018240672,-151.0,0.000399,30]
[381084758,1756018240681,-151.0,0.000399,30]
[381084759,1756018240691,-151.0,0.000399,30]
[381084760,1756018240700,-151.0,0.000399,30]
[381084761,1756018240710,-151.0,0.000399,30]
[381084762,1756018240719,-151.0,0.000399,30]
[381084763,1756018240729,-162.356196,0.000399,30]
[381084764,1756018240738,-162.356196,0.000399,30]
[381084765,1756018240747,-162.356196,0.000399,30]
[381084766,1756018240757,-151.0,0.000399,30]
[381084767,1756018240766,-151.0,0.000399,30]
[381084768,1756018240776,-162.356196,0.000399,30]
[381084769,1756018240785,-151.0,0.000399,30]
[381084770,1756018241025,-151.0,0.000399,30]
[381084771,1756018241039,-151.0,0.000399,30]
[381084772,1756018241050,-151.0,0.000399,30]
[381084773,1756018241059,-159.459233,0.000399,30]
[381084774,1756018241069,-151.0,0.000399,30]
[381084775,1756018241078,-151.0,0.000399,30]
[381084776,1756018241088,-151.446544,0.000399,30]
[381084777,1756018241097,-216.203797,0.000399,30]
[381084778,1756018241107,-216.203797,0.000399,30]
[381084779,1756018241116,-216.203797,0.000399,30]
[381084780,1756018241126,-216.203797,0.000399,30]
[381084781,1756018241135,-151.0,0.000399,30]
[381084782,1756018241145,-151.0,0.000399,30]
[381084783,1756018241155,-151.0,0.000399,30]
[381084784,1756018241164,-151.0,0.000399,30]
[381084785,1756018241173,-151.0,0.000399,30]
[381084786,1756018241183,-151.0,0.000399,30]
[381084787,1756018241193,-151.0,0.000399,30]
[381084788,1756018241202,-151.0,0.000399,30]
[381084789,1756018241212,-151.0,0.000399,30]
[381084790,1756018241221,-151.0,0.000399,30]
[381084791,1756018241231,-151.0,0.000399,30]
[381084792,1756018241240,-348.701245,0.000399,30]
[381084793,1756018241250,-151.0,0.000399,30]
[381084794,1756018241259,-348.701245,0.000399,30]
[381084795,1756018241268,-151.0,0.000399,30]
[381084796,1756018241278,-348.701245,0.000399,30]
[381084797,1756018241287,-348.701245,0.000399,30]
[381084798,1756018241298,-162.075695,0.000399,30]
[381084799,1756018241307,-151.0,0.000399,30]
[381084800,1756018241317,-162.075695,0.000399,30]
[381084801,1756018241326,-151.0,0.000399,30]
[381084802,1756018241336,-162.075695,0.000399,30]
[381084803,1756018241345,-151.0,0.000399,30]
[381084804,1756018241354,-162.075695,0.000399,30]
[381084805,1756018241363,-151.0,0.000399,30]
[381084806,1756018241373,-151.0,0.000399,30]
[381084807,1756018241382,-258.332304,0.000399,30]
[381084808,1756018241392,-283.767003,0.000399,30]
[381084809,1756018241401,-283.767003,0.000399,30]
[381084810,1756018241410,-283.767003,0.000399,30]
[381084811,1756018241419,-160.0,0.000399,30]
[381084812,1756018241428,-283.767003,0.000399,30]
[381084813,1756018241437,-151.0,0.000399,30]
[381084814,1756018241447,-151.0,0.000399,30]
[381084815,1756018241456,-299.653151,0.000399,30]
[381084816,1756018241468,-151.0,0.000399,30]
[381084817,1756018241478,-151.0,0.000399,30]
[381084818,1756018241487,-299.653151,0.000399,30]
[381084819,1756018241496,-151.0,0.000399,30]
[381084820,1756018241505,-662.264513,0.000399,30]
[381084821,1756018241515,-151.0,0.000399,30]
[381084822,1756018241524,-299.653151,0.000399,30]
[381084823,1756018241533,-217.506714,0.000399,30]
[381084824,1756018241542,-662.264513,0.000399,30]
[381084825,1756018241552,-299.653151,0.000399,30]
[381084826,1756018241561,-662.264513,0.000399,30]
[381084827,1756018241570,-662.264513,0.000399,30]
[381084828,1756018241580,-347.456159,0.000399,30]
[381084829,1756018241589,-347.456159,0.000399,30]
[381084830,1756018241598,-234.387578,0.000399,14]
[381084831,1756018241607,-347.456159,0.000399,30]
[381084832,1756018241617,-347.456159,0.000399,30]
[381084833,1756018241626,-1828.352457,0.000399,30]
[381084834,1756018241636,-1828.352457,0.000399,30]
[381084835,1756018241645,-346.009924,0.000399,30]
[381084836,1756018241655,-346.009924,0.000399,30]
[381084837,1756018241665,-1828.352457,0.000399,30]
[381084838,1756018241674,-346.009924,0.000399,30]
[381084839,1756018241683,-1828.352457,0.000399,30]
[381084840,1756018241692,-346.009924,0.000399,30]
[381084841,1756018241702,-167.485033,0.000399,30]
[381084842,1756018241711,-151.0,0.000399,30]
[381084843,1756018241721,-186.934617,0.000399,30]
[381084844,1756018241730,-151.0,0.000399,30]
[381084845,1756018241739,-151.0,0.000399,30]
[381084846,1756018241748,-186.934617,0.000399,30]
[381084847,1756018241757,-151.0,0.000399,30]
[381084848,1756018241767,-186.934617,0.000399,30]
[381084849,1756018241776,-151.0,0.000399,30]
[381084850,1756018241785,-186.934617,0.000399,30]
[381084851,1756018241794,-178.882773,0.000399,30]
[381084852,1756018241803,-151.0,0.000399,30]
[381084853,1756018241812,-178.882773,0.000399,30]
[381084854,1756018241822,-151.0,0.000399,30]
[381084855,1756018241831,-178.882773,0.000399,30]
[381084856,1756018241840,-151.0,0.000399,30]
[381084857,1756018241849,-151.0,0.000399,30]
[381084858,1756018241858,-178.882773,0.000399,30]
[381084859,1756018241868,-253.305063,0.000399,30]
[381084860,1756018241877,-253.305063,0.000399,30]
[381084861,1756018241887,-253.305063,0.000399,30]
[381084862,1756018241897,-253.305063,0.000399,30]
[381084863,1756018241907,-844.67759735,0.000399,30]
[381084864,1756018241916,-151.0,0.000399,30]
[381084865,1756018241926,-151.0,0.000399,30]
[381084866,1756018241935,-151.0,0.000399,30]
[381084867,1756018241944,-523.566991,0.000399,30]
[381084868,1756018241954,-151.0,0.000399,30]
[381084869,1756018241963,-151.0,0.000399,30]
[381084870,1756018241972,-523.566991,0.000399,30]
[381084871,1756018241982,-151.0,0.000399,30]
[381084872,1756018241992,-523.566991,0.000399,30]
[381084873,1756018242001,-523.566991,0.000399,30]
[381084874,1756018242011,-232.42214577,0.000399,30]
[381084875,1756018242020,-151.0,0.000399,30]
[381084876,1756018242029,-538.094166,0.000399,30]
[381084877,1756018242039,-151.0,0.000399,30]
[381084878,1756018242048,-538.094166,0.000399,30]
[381084879,1756018242057,-538.094166,0.000399,30]
[381084880,1756018242067,-538.094166,0.000399,30]
[381084881,1756018242076,-253.949387,0.000399,15]
[381084882,1756018242085,-253.949387,0.000399,15]
[381084883,1756018242094,-253.949387,0.000399,15]
[381084884,1756018242104,-253.949387,0.000399,15]